bitfinex/quotes_SOLUSD_20251218
["timestamp","ask_amount","ask_price","bid_price","bid_amount"]
[1766089049825,0.68,118.26,118.21,0.7]
[1766089050017,0.68,118.26,118.21,7.4992831]
[1766089050226,28.15254942,118.28,118.22,6.7992831]
[1766089050227,0.68,118.27,118.22,6.7992831]
[1766089050534,0.68,118.27,118.22,7.4992831]
[1766089050914,0.68,118.3,118.26,6.7992831]
[1766089051108,42.25302072,118.34,118.23,26.49695606]
[1766089051109,6.7992831,118.29,118.23,26.49695606]
[1766089051314,0.68,118.28,118.23,27.19695606]
[1766089052027,0.68,118.28,118.23,35.6550304]
[1766089052718,0.68,118.28,118.23,9.26]
[1766089053121,8.45460447,118.28,118.23,9.26]
[1766089053323,0.68,118.26,118.21,25.69613752]
[1766089053520,0.68,118.3,118.24,22.21165598]
[1766089053741,0.68,118.29,118.24,22.21165598]
[1766089054625,0.68,118.29,118.24,11.13767296]
[1766089054823,0.68,118.26,118.2,17.71989972]
[1766089055141,0.68,118.26,118.21,19.53347978]
[1766089055513,0.68,118.26,118.22,20.23270393]
[1766089055734,0.68,118.26,118.21,11.07398302]
[1766089056418,0.68,118.26,118.2,29.49387665]
[1766089056419,0.68,118.25,118.2,29.49387665]
[1766089057139,0.68,118.24,118.2,9.26]
[1766089057340,0.68,118.24,118.18,11.77398302]
[1766089057341,0.68,118.23,118.18,11.77398302]
[1766089057540,0.68,118.23,118.16,37.60668137]
[1766089057541,0.68,118.22,118.16,37.60668137]
[1766089057713,0.68,118.21,118.16,37.60668137]
[1766089058043,0.68,118.21,118.17,11.07398302]
[1766089058634,0.68,118.23,118.18,11.07398302]
[1766089059014,0.68,118.23,118.18,11.77398302]
[1766089059217,28.15509725,118.24,118.19,11.77398302]
[1766089059645,19.69767296,118.24,118.2,11.07398302]
[1766089059847,20.37767296,118.24,118.2,11.07398302]
[1766089060144,20.37767296,118.24,118.19,29.49465924]
[1766089060721,9.94,118.24,118.19,29.49465924]
[1766089061546,0.68,118.24,118.19,29.49465924]
[1766089061725,0.68,118.23,118.19,9.96]
[1766089062044,0.68,118.23,118.19,9.26]
[1766089062639,0.68,118.23,118.19,29.44449936]
[1766089062836,0.68,118.23,118.18,8.46161432]
[1766089063036,0.68,118.23,118.19,8.46088188]
[1766089063242,0.68,118.23,118.19,19.5348649]
[1766089063434,20.23098069,118.25,118.19,20.1848649]
[1766089063637,0.7,118.25,118.19,20.1848649]
[1766089063930,9.15670832,118.25,118.19,20.1848649]
[1766089064127,19.53069134,118.25,118.19,20.1848649]
[1766089064327,11.07398302,118.25,118.19,20.1848649]
[1766089064532,0.7,118.25,118.19,20.1848649]
[1766089064844,18.89399051,118.26,118.19,8.46088188]
[1766089065045,11.13767296,118.26,118.21,11.72398302]
[1766089065246,11.13767296,118.26,118.21,0.65]
[1766089065544,0.7,118.26,118.21,11.72398302]
[1766089065847,0.7,118.26,118.21,20.18280352]
[1766089066048,0.7,118.26,118.22,11.07398302]
[1766089066422,10.43767296,118.28,118.23,11.72398302]
[1766089066623,9.96,118.3,118.24,11.72398302]
[1766089066821,9.96,118.3,118.25,11.07398302]
[1766089067019,9.96,118.3,118.25,11.72398302]
[1766089067330,11.77398302,118.32,118.26,11.72398302]
[1766089067636,11.77398302,118.32,118.27,20.17894953]
[1766089067637,0.7,118.32,118.27,20.17894953]
[1766089067832,11.77398302,118.32,118.27,8.45496651]
[1766089068032,0.7,118.32,118.27,19.52894953]
[1766089068751,0.7,118.32,118.27,20.17894953]
[1766089070043,0.7,118.32,118.28,11.72398302]
[1766089071522,0.7,118.32,118.28,20.17829653]
[1766089071953,10.43767296,118.33,118.29,11.07398302]
[1766089072148,9.96,118.34,118.3,11.72398302]
[1766089072149,0.7,118.34,118.3,11.72398302]
[1766089072350,0.7,118.36,118.33,11.07398302]
[1766089072552,0.7,118.4,118.35,11.07398302]
[1766089072737,0.7,118.39,118.35,11.07398302]
[1766089072924,20.33398302,118.41,118.36,0.65]
[1766089072925,9.26,118.41,118.36,0.65]
[1766089073122,0.7,118.42,118.36,11.07398302]
[1766089073421,0.7,118.41,118.36,20.1727536]
[1766089073626,0.7,118.41,118.36,11.72398302]
[1766089074058,0.7,118.41,118.34,0.65]
[1766089074059,0.7,118.4,118.34,0.65]
[1766089074234,11.07398302,118.4,118.34,20.98398302]
[1766089074436,0.7,118.39,118.34,29.43420163]
[1766089074631,0.7,118.39,118.35,11.07398302]
[1766089075357,0.7,118.39,118.35,19.52340374]
[1766089076248,0.7,118.39,118.32,18.71994492]
[1766089076441,0.7,118.39,118.34,11.07398302]
[1766089077278,0.7,118.39,118.35,11.07398302]
[1766089077580,10.43767296,118.41,118.35,20.17343066]
[1766089077739,0.7,118.4,118.35,29.43343066]
[1766089078172,0.7,118.4,118.36,11.07398302]
[1766089078470,10.43767296,118.41,118.37,11.07398302]
[1766089078764,11.13767296,118.41,118.37,11.07398302]
[1766089079256,0.7,118.41,118.37,11.07398302]
[1766089079640,0.7,118.43,118.38,11.72398302]
[1766089079849,0.7,118.43,118.39,11.07398302]
[1766089080366,21.30355207,118.47,118.42,11.07398302]
[1766089080367,0.2,118.47,118.42,11.07398302]
[1766089080570,0.2,118.47,118.45,11.07398302]
[1766089080770,0.9,118.49,118.46,11.72398302]
[1766089080771,0.2,118.49,118.46,11.72398302]
[1766089080975,0.2,118.49,118.47,11.07398302]
[1766089081171,0.2,118.49,118.46,11.72398302]
[1766089081376,0.2,118.49,118.46,0.65]
[1766089081566,0.2,118.49,118.46,11.72398302]
[1766089081757,0.86,118.49,118.46,11.07398302]
[1766089081964,0.86,118.49,118.45,20.33398302]
[1766089082166,0.86,118.49,118.45,28.77614934]
[1766089082690,0.86,118.49,118.46,11.07398302]
[1766089082866,0.2,118.49,118.45,9.26]
[1766089083059,0.66,118.45,118.38,8.44709446]
[1766089083257,11.07398302,118.44,118.38,19.52107748]
[1766089083450,21.51165598,118.46,118.4,11.07398302]
[1766089083678,0.66,118.45,118.4,11.07398302]
[1766089083881,0.66,118.45,118.4,19.51939577]
[1766089084562,20.35767296,118.48,118.42,11.76398302]
[1766089084854,0.66,118.43,118.38,11.07398302]
[1766089085073,0.66,118.42,118.37,28.7817446]
[1766089085278,0.66,118.42,118.37,17.70776158]
[1766089085479,0.66,118.41,118.37,9.26]
[1766089085887,0.66,118.41,118.37,17.70793409]
[1766089086185,0.66,118.41,118.37,9.26]
[1766089086392,0.66,118.4,118.37,9.26]
[1766089086690,0.66,118.4,118.34,10.43767296]
[1766089086691,0.66,118.39,118.34,17.70983643]
[1766089086861,0.66,118.38,118.34,17.70983643]
[1766089087063,0.66,118.38,118.34,9.26]
[1766089087859,11.73398302,118.38,118.34,9.26]
[1766089088058,0.66,118.38,118.34,9.26]
[1766089089503,11.73398302,118.38,118.34,9.26]
[1766089089707,11.73398302,118.38,118.28,82.54243696]
[1766089089708,11.07398302,118.35,118.29,29.02757485]
[1766089089869,10.43767296,118.36,118.27,11.76398302]
[1766089089870,0.66,118.33,118.27,11.76398302]
[1766089090066,0.66,118.33,118.28,8.45410083]
[1766089090566,0.66,118.33,118.28,19.52808385]
[1766089090789,0.66,118.33,118.29,8.45362102]
[1766089091093,0.66,118.33,118.29,19.52760404]
[1766089091269,11.07398302,118.35,118.29,20.21760404]
[1766089091270,0.66,118.35,118.29,20.21760404]
[1766089091673,11.07398302,118.35,118.29,20.21760404]
[1766089091889,0.66,118.34,118.28,20.21833147]
[1766089092186,11.07398302,118.34,118.28,20.21833147]
[1766089092386,0.66,118.31,118.24,21.83327438]
[1766089092576,0.67,118.3,118.25,19.53022673]
[1766089092775,11.74398302,118.29,118.24,17.7171943]
[1766089093078,0.67,118.31,118.27,8.45494781]
[1766089093285,0.67,118.32,118.27,19.52893083]
[1766089094283,0.67,118.32,118.28,9.26]
[1766089094598,11.74398302,118.36,118.3,11.07398302]
[1766089094771,11.74398302,118.36,118.31,9.26]
[1766089094772,0.67,118.35,118.31,9.26]
[1766089095474,11.74398302,118.35,118.31,9.26]
[1766089095671,0.67,118.34,118.28,19.88392794]
[1766089095866,0.67,118.34,118.29,20.33398302]
[1766089096180,0.67,118.34,118.3,8.45308537]
[1766089096380,0.67,118.34,118.3,19.52706839]
[1766089096581,0.67,118.34,118.29,28.78754501]
[1766089097265,11.74398302,118.34,118.29,9.26]
[1766089097591,0.67,118.34,118.29,28.78770315]
[1766089097797,0.67,118.34,118.29,19.52770315]
[1766089097997,0.67,118.34,118.29,28.78770315]
[1766089098295,0.67,118.33,118.29,9.26]
[1766089099164,0.67,118.34,118.29,28.78769627]
[1766089099387,0.67,118.36,118.31,11.07398302]
[1766089099773,0.67,118.36,118.32,20.33398302]
[1766089100271,0.67,118.36,118.32,9.26]
[1766089100677,10.43767296,118.37,118.28,10.43767296]
[1766089100678,0.67,118.34,118.28,10.43767296]
[1766089100886,0.67,118.34,118.29,28.7873764]
[1766089103684,21.51165598,118.37,118.31,11.07398302]
[1766089103882,21.51165598,118.37,118.3,9.49994492]
[1766089103883,0.67,118.36,118.3,20.57392794]
[1766089104082,0.67,118.35,118.31,9.26]
[1766089104889,0.67,118.35,118.3,9.26]
[1766089105096,0.67,118.34,118.29,8.45366386]
[1766089105277,0.67,118.33,118.29,9.26]
[1766089105477,0.67,118.33,118.28,20.21817402]
[1766089105798,0.67,118.33,118.29,9.26]
[1766089106586,0.67,118.33,118.28,9.95]
[1766089107331,0.67,118.3,118.26,8.45582573]
[1766089107503,0.67,118.3,118.26,9.26]
[1766089107679,11.74398302,118.3,118.26,9.26]
[1766089107882,0.67,118.3,118.26,9.26]
[1766089108091,0.67,118.32,118.27,8.45511288]
[1766089108291,0.67,118.32,118.27,9.14511288]
[1766089108495,0.67,118.32,118.26,28.78961495]
[1766089108795,0.67,118.31,118.26,28.78961495]
[1766089110309,0.67,118.31,118.26,17.71563193]
[1766089110680,0.67,118.31,118.26,28.78961495]
[1766089111416,11.10767296,118.31,118.26,28.78961495]
[1766089113491,0.67,118.31,118.26,25.21398921]
[1766089114105,8.45172098,118.32,118.27,7.49835728]
[1766089114106,0.67,118.32,118.27,7.49835728]
[1766089114504,8.45167531,118.32,118.26,8.45567145]
[1766089114843,0.67,118.29,118.24,16.06835728]
[1766089114998,0.67,118.29,118.24,24.52543608]
[1766089115198,0.67,118.29,118.24,25.21543608]
[1766089115810,0.67,118.29,118.21,0.69]
[1766089115811,0.67,118.26,118.21,0.69]
[1766089116089,0.67,118.25,118.2,16.75835728]
[1766089116296,0.67,118.25,118.2,25.21839717]
[1766089117194,0.67,118.25,118.2,24.52839717]
[1766089117395,0.67,118.25,118.21,0.69]
[1766089117604,20.36767296,118.29,118.22,0.69]
[1766089117806,20.36767296,118.29,118.23,16.75835728]
[1766089118002,0.67,118.28,118.23,16.75835728]
[1766089118622,9.26,118.29,118.24,7.49835728]
[1766089118811,9.93,118.29,118.24,7.49835728]
[1766089119015,0.67,118.29,118.24,7.49835728]
[1766089119520,0.67,118.33,118.28,7.49835728]
[1766089119713,0.67,118.33,118.28,6.80835728]
[1766089119935,15.25895616,118.34,118.27,9.26]
[1766089119936,0.67,118.35,118.31,6.80835728]
[1766089120428,0.67,118.37,118.32,6.80835728]
[1766089120623,0.67,118.37,118.32,15.25941288]
[1766089121516,9.26,118.38,118.34,6.80835728]
[1766089121716,9.93,118.38,118.33,7.49835728]
[1766089122532,0.67,118.38,118.33,16.75835728]
[1766089122710,11.10767296,118.38,118.33,25.20915224]
[1766089124207,0.68,118.37,118.3,41.09979885]
[1766089124403,0.68,118.36,118.31,24.520305]
[1766089124637,0.68,118.35,118.31,9.26]
[1766089125320,0.68,118.35,118.3,24.52108787]
[1766089126539,0.68,118.34,118.29,15.98180496]
[1766089126726,0.68,118.34,118.29,16.06835728]
[1766089127619,6.80835728,118.33,118.28,9.26]
[1766089127838,0.68,118.32,118.28,9.26]
[1766089128032,17.24603024,118.32,118.25,6.80835728]
[1766089128227,0.68,118.3,118.25,25.24446395]
[1766089128542,24.37810486,118.32,118.26,6.80835728]
[1766089128921,9.11767296,118.32,118.27,7.52835728]
[1766089129117,15.25838126,118.35,118.29,0.72]
[1766089129518,6.80835728,118.34,118.28,9.26]
[1766089130243,8.45094228,118.33,118.28,9.26]
[1766089130436,15.93929956,118.33,118.28,9.26]
[1766089130958,0.68,118.32,118.27,0.72]
[1766089131138,7.48835728,118.31,118.25,16.78835728]
[1766089131338,0.68,118.3,118.25,25.24464258]
[1766089131852,6.80835728,118.3,118.23,9.52994492]
[1766089132041,10.43767296,118.31,118.23,15.98574032]
[1766089132042,6.80835728,118.29,118.23,15.98574032]
[1766089132348,0.68,118.28,118.23,25.24574032]
[1766089132720,0.68,118.34,118.28,0.72]
[1766089132921,0.68,118.31,118.26,9.98]
[1766089133128,0.68,118.31,118.27,0.72]
[1766089134121,0.68,118.31,118.27,9.1751615]
[1766089134528,17.92603024,118.34,118.28,0.72]
[1766089134849,17.92603024,118.34,118.29,0.72]
[1766089135058,11.11767296,118.34,118.29,0.72]
[1766089135229,11.11767296,118.34,118.29,7.52835728]
[1766089135421,0.68,118.34,118.29,6.80835728]
[1766089135619,7.48835728,118.36,118.31,0.72]
[1766089135842,0.68,118.37,118.32,7.52835728]
[1766089136352,0.68,118.37,118.32,0.72]
[1766089137035,9.12809775,118.37,118.32,0.72]
[1766089138826,15.93395972,118.41,118.35,0.72]
[1766089139043,15.93395972,118.41,118.36,7.52835728]
[1766089139044,0.68,118.41,118.36,7.52835728]
[1766089139246,0.68,118.41,118.37,0.72]
[1766089139442,7.48835728,118.41,118.37,0.72]
[1766089139645,0.68,118.4,118.35,9.98]
[1766089139848,0.68,118.4,118.35,16.78835728]
[1766089140041,0.68,118.4,118.35,25.23725276]
[1766089140932,10.43767296,118.42,118.37,0.72]
[1766089141129,10.43767296,118.42,118.36,6.80835728]
[1766089141130,9.26,118.44,118.39,7.49835728]
[1766089141355,9.98,118.44,118.39,7.49835728]
[1766089141757,29.34075194,118.49,118.4,7.49835728]
[1766089141758,7.52835728,118.46,118.4,7.49835728]
[1766089141938,17.96603024,118.46,118.4,7.49835728]
[1766089142253,6.80835728,118.45,118.4,0.69]
[1766089142446,7.52835728,118.45,118.4,9.13584722]
[1766089142649,7.52835728,118.45,118.4,0.69]
[1766089142850,7.52835728,118.45,118.37,10.43767296]
[1766089142851,0.72,118.42,118.37,11.12767296]
[1766089143039,0.72,118.45,118.41,0.69]
[1766089143241,0.72,118.45,118.39,15.94451818]
[1766089143743,6.80835728,118.42,118.36,7.49835728]
[1766089143946,0.72,118.41,118.36,25.20678038]
[1766089144767,0.72,118.41,118.34,8.45014119]
[1766089144768,0.72,118.38,118.34,8.45014119]
[1766089144941,7.52835728,118.4,118.35,9.13947335]
[1766089145141,7.52835728,118.38,118.32,16.75835728]
[1766089145363,0.72,118.37,118.32,18.40126702]
[1766089146163,0.72,118.37,118.32,18.40157934]
[1766089146164,17.96603024,118.37,118.32,18.40157934]
[1766089146860,30.37547274,118.4,118.33,0.69]
[1766089146861,7.52835728,118.39,118.33,0.69]
[1766089147059,17.96603024,118.39,118.33,0.69]
[1766089147267,11.15767296,118.39,118.33,7.49835728]
[1766089147760,17.24603024,118.39,118.33,7.49835728]
[1766089147951,0.72,118.38,118.33,0.69]
[1766089148152,0.72,118.38,118.33,9.14086469]
[1766089148465,0.72,118.38,118.33,8.45086469]
[1766089148759,0.72,118.4,118.35,0.69]
[1766089149265,0.72,118.4,118.35,7.49835728]
[1766089149441,27.22603024,118.42,118.36,0.69]
[1766089149757,27.22603024,118.42,118.37,0.69]
[1766089149758,25.23293133,118.42,118.37,0.69]
[1766089150060,35.67060429,118.42,118.37,0.69]
[1766089150468,0.72,118.41,118.37,0.69]
[1766089151038,7.52835728,118.41,118.37,0.69]
[1766089151264,7.52835728,118.41,118.29,43.26711401]
[1766089151265,11.15767296,118.37,118.31,9.14195621]
[1766089151465,17.96603024,118.37,118.32,0.69]
[1766089151836,8.80994492,118.41,118.3,0.69]
[1766089151837,7.52835728,118.35,118.3,0.69]
[1766089153562,6.80835728,118.34,118.28,17.26420805]
[1766089153750,7.51835728,118.33,118.27,25.18334305]
[1766089153960,7.51835728,118.33,118.28,0.66]
[1766089154267,0.71,118.33,118.28,9.11446237]
[1766089154564,0.71,118.33,118.26,0.66]
[1766089154565,7.51835728,118.31,118.26,0.66]
[1766089154947,0.71,118.31,118.26,9.11576308]
[1766089155758,7.51835728,118.31,118.26,9.11576308]
[1766089157074,15.26016981,118.32,118.27,0.66]
[1766089157271,15.97016981,118.32,118.27,0.66]
[1766089157573,6.80835728,118.35,118.29,6.80835728]
[1766089157753,15.9673087,118.36,118.3,0.66]
[1766089157961,7.51835728,118.35,118.3,0.66]
[1766089158162,6.80835728,118.34,118.3,0.66]
[1766089158364,0.71,118.35,118.3,0.66]
[1766089158674,7.51835728,118.35,118.3,0.66]
[1766089158973,6.80835728,118.34,118.3,0.66]
[1766089159270,6.80835728,118.34,118.28,9.92]
[1766089159271,7.51835728,118.33,118.28,9.92]
[1766089159885,7.51835728,118.33,118.28,18.37448995]
[1766089160456,0.71,118.33,118.28,17.71448995]
[1766089160657,8.44905339,118.36,118.3,0.66]
[1766089160658,10.43767296,118.35,118.3,0.66]
[1766089160974,17.95603024,118.36,118.3,0.66]
[1766089161164,6.80835728,118.35,118.3,0.66]
[1766089161370,6.80835728,118.35,118.3,9.11304637]
[1766089161568,6.80835728,118.35,118.3,0.66]
[1766089161760,6.80835728,118.31,118.25,0.66]
[1766089162078,0.71,118.29,118.25,0.66]
[1766089162962,6.80835728,118.3,118.25,0.66]
[1766089163381,6.80835728,118.3,118.25,9.11649631]
[1766089163674,7.51835728,118.3,118.25,9.11649631]
[1766089165258,0.71,118.3,118.25,9.11649631]
[1766089165460,7.51835728,118.3,118.25,9.11649631]
[1766089165672,0.71,118.3,118.25,8.45649631]
[1766089165979,0.71,118.3,118.23,9.92]
[1766089165980,7.51835728,118.28,118.23,9.92]
[1766089166284,7.51835728,118.25,118.21,0.66]
[1766089166585,10.43767296,118.27,118.22,0.66]
[1766089166586,17.95603024,118.27,118.22,0.66]
[1766089166770,0.71,118.27,118.22,0.66]
[1766089167185,17.95603024,118.29,118.23,0.66]
[1766089167401,11.14767296,118.29,118.24,0.66]
[1766089167589,0.71,118.29,118.24,0.66]
[1766089167796,0.71,118.29,118.24,6.80835728]
[1766089168000,0.71,118.29,118.25,0.66]
[1766089169487,7.51835728,118.29,118.25,0.66]
[1766089169985,0.71,118.29,118.25,0.66]
[1766089171793,8.4480865,118.37,118.26,6.80835728]
[1766089171966,8.4480865,118.37,118.29,0.66]
[1766089171967,0.71,118.35,118.29,0.66]
[1766089172169,0.71,118.35,118.3,0.66]
[1766089172487,0.71,118.35,118.3,6.80835728]
[1766089172666,0.71,118.35,118.3,7.46835728]
[1766089172865,0.71,118.35,118.3,0.66]
[1766089173293,9.26,118.37,118.31,0.66]
[1766089173294,16.77835728,118.37,118.31,0.66]
[1766089173497,26.50603024,118.37,118.31,0.66]
[1766089173791,7.51835728,118.36,118.31,0.66]
[1766089174365,0.71,118.36,118.31,0.66]
[1766089175193,7.51835728,118.36,118.31,0.66]
[1766089175390,11.76651339,118.36,118.31,0.66]
[1766089176290,11.76651339,118.36,118.3,28.76936483]
[1766089176291,11.76651339,118.33,118.24,42.28469841]
[1766089176483,0.71,118.32,118.28,9.11401337]
[1766089176673,0.71,118.32,118.27,8.45492078]
[1766089176994,0.71,118.31,118.27,8.45519248]
[1766089177491,22.20418635,118.33,118.27,9.11519248]
[1766089177868,0.71,118.32,118.27,9.11519248]
[1766089178492,0.71,118.31,118.27,0.66]
[1766089180169,0.71,118.31,118.26,9.11566621]
[1766089180882,11.76651339,118.31,118.26,9.11566621]
[1766089181290,19.69767296,118.33,118.26,9.11566621]
[1766089181291,10.43767296,118.33,118.27,0.66]
[1766089181479,0.71,118.34,118.29,0.66]
[1766089181888,11.76651339,118.34,118.29,0.66]
[1766089182681,11.71651339,118.34,118.29,0.66]
[1766089182882,0.66,118.33,118.29,0.66]
[1766089184090,11.71651339,118.33,118.29,0.66]
[1766089185681,0.66,118.33,118.29,0.66]
[1766089186007,0.66,118.31,118.25,9.51994492]
[1766089186192,21.49418635,118.32,118.23,8.80994492]
[1766089186193,0.66,118.29,118.23,8.80994492]
[1766089186395,0.66,118.27,118.22,9.26]
[1766089186584,11.71651339,118.27,118.22,17.71880456]
[1766089187094,0.66,118.26,118.22,9.26]
[1766089187418,11.05651339,118.26,118.22,9.26]
[1766089187789,11.71651339,118.25,118.2,0.1]
[1766089187987,0.66,118.24,118.2,0.1]
[1766089188711,0.66,118.24,118.2,8.56019473]
[1766089189020,0.66,118.24,118.2,0.1]
[1766089189415,11.09767296,118.27,118.21,11.05651339]
[1766089189608,11.09767296,118.27,118.22,0.71]
[1766089189805,11.09767296,118.27,118.22,9.16852487]
[1766089190202,0.66,118.26,118.22,0.71]
[1766089192199,11.09767296,118.27,118.22,9.16854821]
[1766089192600,0.66,118.26,118.22,0.71]
[1766089196609,10.43767296,118.27,118.23,0.71]
[1766089197433,0.66,118.27,118.23,0.71]
[1766089199305,11.71651339,118.27,118.23,0.71]
[1766089199507,0.66,118.28,118.24,0.71]
[1766089199925,0.66,118.28,118.21,17.71920705]
[1766089199926,11.05651339,118.27,118.21,17.71920705]
[1766089200122,0.66,118.26,118.21,18.42920705]
[1766089200518,29.94814249,118.29,118.24,0.71]
[1766089200717,11.71651339,118.28,118.24,0.71]
[1766089201029,0.66,118.27,118.22,9.16843068]
[1766089201236,0.66,118.24,118.2,8.90994492]
[1766089201536,11.71651339,118.24,118.2,0.1]
[1766089201738,49.29098404,118.27,118.2,0.1]
[1766089201932,7.0761146,118.32,118.23,11.05651339]
[1766089202240,0.66,118.24,118.21,8.4589704]
[1766089202422,0.66,118.26,118.22,8.45873326]
[1766089202741,0.66,118.26,118.22,0.68]
[1766089203114,11.05651339,118.25,118.2,9.24010144]
[1766089203320,0.66,118.24,118.2,9.24010144]
[1766089204344,28.15325804,118.27,118.23,0.68]
[1766089204345,20.35767296,118.27,118.23,0.68]
[1766089204511,11.05651339,118.26,118.21,0.68]
[1766089204711,0.66,118.25,118.2,18.4996955]
[1766089204955,0.66,118.25,118.2,9.36]
[1766089205245,0.66,118.25,118.2,18.49986829]
[1766089205831,0.66,118.25,118.19,32.20753131]
[1766089205832,0.66,118.2,118.17,0.1]
[1766089206034,0.66,118.16,118.13,0.2]
[1766089206234,11.05651339,118.18,118.14,0.68]
[1766089206424,20.97651339,118.19,118.14,0.68]
[1766089206939,9.26,118.19,118.15,0.68]
[1766089207142,22.15418635,118.2,118.16,11.05651339]
[1766089207143,0.66,118.2,118.16,11.05651339]
[1766089207453,10.43767296,118.23,118.18,11.73651339]
[1766089207629,0.66,118.25,118.21,11.73651339]
[1766089207835,0.66,118.26,118.22,11.05651339]
[1766089208644,0.66,118.26,118.19,0.68]
[1766089208939,11.71651339,118.25,118.19,11.73651339]
[1766089209345,11.71651339,118.25,118.19,19.51711062]
[1766089209346,0.66,118.25,118.19,19.51711062]
[1766089209536,11.71651339,118.25,118.2,11.05651339]
[1766089209842,11.71651339,118.25,118.19,20.19711062]
[1766089209843,0.66,118.24,118.19,20.19711062]
[1766089210217,11.05651339,118.24,118.19,0.68]
[1766089210542,0.66,118.23,118.18,29.45796416]
[1766089211048,0.66,118.23,118.18,20.19796416]
[1766089211427,0.66,118.23,118.19,11.73651339]
[1766089211934,11.09767296,118.26,118.21,11.73651339]
[1766089212133,0.66,118.26,118.21,11.73651339]
[1766089212334,11.09767296,118.26,118.21,11.73651339]
[1766089212536,0.66,118.26,118.22,11.05651339]
[1766089213126,9.94,118.28,118.24,11.05651339]
[1766089213325,9.94,118.28,118.24,11.72651339]
[1766089213525,9.26,118.28,118.25,11.05651339]
[1766089213846,10.43767296,118.29,118.25,11.05651339]
[1766089214142,11.11767296,118.29,118.25,11.05651339]
[1766089214542,0.68,118.28,118.24,0.67]
[1766089214738,0.68,118.28,118.24,11.05651339]
[1766089214943,0.68,118.28,118.24,11.72651339]
[1766089215324,10.43767296,118.29,118.25,11.72651339]
[1766089215834,9.13312722,118.3,118.25,11.72651339]
[1766089216150,0.68,118.3,118.26,11.72651339]
[1766089216447,9.26,118.31,118.26,11.72651339]
[1766089216746,19.5067685,118.34,118.26,9.26]
[1766089216949,0.68,118.32,118.27,11.72651339]
[1766089217128,11.73651339,118.31,118.27,0.67]
[1766089217327,29.93551531,118.34,118.29,0.67]
[1766089217328,0.68,118.34,118.29,0.67]
[1766089217531,0.68,118.34,118.3,11.05651339]
[1766089218251,11.73651339,118.34,118.29,11.72651339]
[1766089218548,11.73651339,118.34,118.29,0.67]
[1766089218746,11.73651339,118.33,118.27,9.12501741]
[1766089218921,11.73651339,118.33,118.28,11.05651339]
[1766089219540,11.73651339,118.33,118.27,20.1815308]
[1766089220153,0.68,118.33,118.28,11.72651339]
[1766089221042,0.68,118.32,118.28,0.67]
[1766089221246,0.68,118.32,118.25,21.1405657]
[1766089221247,11.73651339,118.31,118.25,9.12643075]
[1766089221450,0.68,118.3,118.25,29.44294414]
[1766089222452,9.94,118.35,118.3,0.67]
[1766089222655,9.94,118.35,118.3,11.72651339]
[1766089222960,9.26,118.35,118.31,11.72651339]
[1766089223456,9.26,118.35,118.31,0.67]
[1766089224958,9.94,118.35,118.31,0.67]
[1766089225558,9.94,118.35,118.31,11.72651339]
[1766089225946,21.49418635,118.36,118.31,11.72651339]
[1766089226143,30.62299197,118.36,118.31,11.72651339]
[1766089226955,0.68,118.33,118.28,11.05651339]
[1766089227258,0.68,118.32,118.27,18.38495485]
[1766089227438,0.68,118.32,118.27,29.44146824]
[1766089227646,0.68,118.32,118.28,20.18094134]
[1766089227846,11.73651339,118.34,118.28,20.18094134]
[1766089228037,20.1868074,118.34,118.29,11.05651339]
[1766089228643,0.68,118.33,118.28,20.18094134]
[1766089229634,0.68,118.33,118.28,0.67]
[1766089229840,0.68,118.32,118.28,0.67]